fUST/lending_fUST_20250717
["ID","MTS","AMOUNT","RATE_DAILY","PERIOD"]
[372648783,1752733688772,-460.0,0.00018036,2]
[372648784,1752733688806,-460.0,0.00018036,2]
[372648785,1752733688839,-460.0,0.00018036,2]
[372648786,1752733688872,-460.0,0.00018036,2]
[372648787,1752733688905,-460.0,0.00018036,2]
[372648788,1752733688939,-502.29901836,0.00018037,2]
[372648789,1752733689632,500.0,7.4e-07,120]
[372648790,1752733689895,500.0,0.00018036,2]
[372648791,1752733689973,460.0,0.00018036,2]
[372648792,1752733692430,3035.40196328,0.00017129,2]
[372648793,1752733692461,10000.0,0.00017129,2]
[372648794,1752733692490,10000.0,0.00017129,2]
[372648795,1752733692527,1864.59803672,0.00017129,2]
[372648797,1752733697695,460.0,0.00018036,2]
[372648798,1752733699889,460.0,0.00018036,2]
[372648799,1752733700054,460.0,0.00018036,2]
[372648803,1752733701556,2090.97,0.00018035,2]
[372648804,1752733702446,460.0,0.00018036,2]
[372648806,1752733704417,387.82226165,0.00018032,2]
[372648807,1752733705121,460.0,0.00018036,2]
[372648810,1752733707127,460.0,0.00018032,2]
[372648811,1752733707463,460.0,0.00018032,2]
[372648812,1752733708657,460.0,0.00018032,2]
[372648814,1752733710015,376.74488546,0.00018032,2]
[372648816,1752733712058,460.0,0.00018032,2]
[372648817,1752733713017,500.0,7.4e-07,120]
[372648822,1752733717116,460.0,0.00018032,2]
[372648823,1752733717344,460.0,0.00018032,2]
[372648828,1752733722084,219.86481617,0.00018036,2]
[372648829,1752733722112,240.13518383,0.00018036,2]
[372648830,1752733722325,6905.92996278,0.00015,2]
[372648831,1752733724576,2853.93485339,0.0001,2]
[372648832,1752733724604,8492.10140623,0.0001,2]
[372648835,1752733727260,500.0,7.4e-07,120]
[372648836,1752733729794,460.0,0.00018032,2]
[372648837,1752733730701,460.0,0.00018036,2]
[372648838,1752733731557,460.0,0.00018036,2]
[372648839,1752733731908,127.89859377,0.00018032,2]
[372648840,1752733731942,2178.05140623,0.00018032,2]
[372648841,1752733734471,460.0,0.00018036,2]
[372648842,1752733737801,460.0,0.00018032,2]
[372648844,1752733739183,976.047132,0.00017134,2]
[372648845,1752733743435,166.0,0.00017134,2]
[372648846,1752733744173,460.0,0.00018036,2]
[372648847,1752733745011,4193.99,0.00018032,2]
[372648848,1752733748025,899.49,0.00018035,2]
[372648849,1752733752360,500.0,7.4e-07,120]
[372648850,1752733755046,206.42146177,0.00018036,2]
[372648851,1752733755075,253.57853823,0.00018036,2]
[372648852,1752733755252,460.0,0.00018032,2]
[372648853,1752733756991,460.0,0.00018036,2]
[372648854,1752733759107,460.0,0.00018032,2]
[372648855,1752733760767,460.0,0.00018032,2]
[372648856,1752733762997,460.0,0.00018036,2]
[372648857,1752733764112,500.0,7.4e-07,120]
[372648858,1752733764626,7446.42146177,0.00017132,2]
[372648859,1752733764656,10000.0,0.00017132,2]
[372648860,1752733764684,2847.31433783,0.00017132,2]
[372648861,1752733768153,800.0,0.00017898,2]
[372648862,1752733770053,710.08,0.00018032,2]
[372648863,1752733772026,460.0,0.00018032,2]
[372648864,1752733773469,2579.09,0.00018035,2]
[372648865,1752733774599,556.62516262,0.00018036,2]
[372648867,1752733775608,500.0,7.4e-07,120]
[372648868,1752733778809,462.5643148,0.00018036,2]
[372648869,1752733779297,460.0,0.00018032,2]
[372648870,1752733781242,460.0,0.00018036,2]
[372648871,1752733781739,664.32618475,0.00018035,2]
[372648872,1752733781766,10000.0,0.00018035,2]
[372648873,1752733781792,10000.0,0.00018035,2]
[372648874,1752733781818,10000.0,0.00018035,2]
[372648875,1752733781844,10000.0,0.00018035,2]
[372648876,1752733781870,10000.0,0.00018035,2]
[372648877,1752733794211,151.0,7.4e-07,100]
[372648878,1752733804080,-300.0,0.00018031,2]
[372648879,1752733804116,-300.0,0.00018031,2]
[372648880,1752733804153,-300.0,0.00018031,2]
[372648881,1752733804186,-300.0,0.00018031,2]
[372648882,1752733804220,-460.0,0.00018032,2]
[372648883,1752733804255,-460.0,0.00018032,2]
[372648884,1752733804294,-460.0,0.00018032,2]
[372648885,1752733804330,-460.0,0.00018032,2]
[372648886,1752733804367,-1286.69,0.00018032,2]
[372648887,1752733804404,-460.0,0.00018032,2]
[372648888,1752733804715,-642.73,0.00018035,2]
[372648891,1752733808563,-467.41459426,0.00018035,2]
[372648894,1752733809206,-460.0,0.00018032,2]
[372648895,1752733810885,-3290.9288482,0.00018035,2]
[372648896,1752733811075,-10000.0,0.00018035,2]
[372648897,1752733811281,-10000.0,0.00018035,2]
[372648898,1752733811658,-10000.0,0.00018035,2]
[372648899,1752733811828,-10000.0,0.00018035,2]
[372648900,1752733811994,-10000.0,0.00018035,2]
[372648901,1752733812258,-10000.0,0.00018035,2]
[372648904,1752733812532,-10000.0,0.00018035,2]
[372648905,1752733812695,-10000.0,0.00018035,2]
[372648906,1752733813660,-10000.0,0.00018035,2]
[372648907,1752733813906,-1200.0,0.00018034,2]
[372648908,1752733814022,-7600.0,0.00018035,2]
[372648909,1752733814131,-10000.0,0.00018035,2]
[372648910,1752733814404,-460.0,0.00018032,2]
[372648911,1752733814502,-9080.0,0.00018035,2]
[372648912,1752733814655,-10000.0,0.00018035,2]
[372648913,1752733814914,-10000.0,0.00018035,2]
[372648915,1752733816765,150.0,0.00015984,2]
[372648919,1752733825235,165.471167,0.00017129,2]
[372648920,1752733825454,165.471167,0.000173,2]
[372648923,1752733828087,800.0,0.00017883,2]
[372648924,1752733828139,800.0,0.00017983,2]
[372648925,1752733828214,800.0,0.00017885,2]
[372648926,1752733828511,800.0,0.00017932,2]
[372648927,1752733828572,800.0,0.00017908,2]
[372648928,1752733828623,800.0,0.00017889,2]
[372648967,1752733836786,-800.0,0.00018007,2]
[372648968,1752733836799,-2289.29,0.00018032,2]
[372648969,1752733836809,-460.0,0.00018032,2]
[372648970,1752733836818,-301.38898646,0.00018032,2]
[372649008,1752733837874,-158.61101354,0.00018032,2]
[372649009,1752733837885,-460.0,0.00018032,2]
[372649010,1752733837894,-4866.38898645,0.00018035,2]
[372649011,1752733837907,-5606.99999965,0.00018035,2]
[372649016,1752733837966,-168891.35598095,0.00018035,2]
[372649017,1752733837976,-460.0,0.00018036,2]
[372649018,1752733837985,-460.0,0.00018036,2]
[372649019,1752733837995,-460.0,0.00018036,2]
[372649021,1752733838005,-460.0,0.00018036,2]
[372649023,1752733838014,-460.0,0.00018036,2]
[372649025,1752733838024,-800.0,0.00018051,2]
[372649027,1752733838033,-800.0,0.00018062,2]
[372649029,1752733838043,-800.0,0.00018094,2]
[372649031,1752733838053,-151.16351466,0.00018124,2]
[372649033,1752733838063,-500.0,0.00018124,2]
[372649035,1752733838072,-500.0,0.00018124,2]
[372649037,1752733838082,-500.0,0.00018124,2]
[372649039,1752733838092,-500.0,0.00018124,2]
[372649041,1752733838102,-500.0,0.00018124,2]
[372649043,1752733838111,-521.32392601,0.00018124,2]
[372649045,1752733838121,-236.57750082,0.0001813,2]
[372649048,1752733838133,-500.0,0.0001813,2]
[372649051,1752733838143,-500.0,0.0001813,2]
[372649054,1752733838153,-500.0,0.0001813,2]
[372649057,1752733838162,-500.0,0.0001813,2]
[372649061,1752733838172,-500.0,0.0001813,2]
[372649064,1752733838181,-500.0,0.0001813,2]
[372649067,1752733838191,-500.0,0.0001813,2]
[372649070,1752733838200,-500.0,0.0001813,2]
[372649073,1752733838209,-549.75472408,0.0001813,2]
[372649075,1752733838218,-500.0,0.0001813,2]
[372649077,1752733838228,-500.0,0.0001813,2]
[372649079,1752733838237,-500.0,0.0001813,2]
[372649081,1752733838246,-500.0,0.0001813,2]
[372649083,1752733838255,-500.0,0.0001813,2]
[372649085,1752733838264,-500.0,0.0001813,2]
[372649087,1752733838274,-500.0,0.0001813,2]
[372649089,1752733838283,-388.94335473,0.0001813,2]
[372649091,1752733838294,-357.21653014,0.0001813,2]
[372649093,1752733838304,-500.0,0.0001813,2]
[372649095,1752733838314,-500.0,0.0001813,2]
[372649097,1752733838325,-439.55816696,0.0001813,2]
[372649099,1752733838335,-500.0,0.0001813,2]
[372649101,1752733838344,-500.0,0.0001813,2]
[372649103,1752733838354,-500.0,0.0001813,2]
[372649105,1752733838364,-261.58131701,0.0001813,2]
[372649107,1752733838374,-500.0,0.0001813,2]
[372649109,1752733838385,-500.0,0.0001813,2]
[372649111,1752733838395,-306.32925858,0.0001813,2]
[372649113,1752733838404,-500.0,0.0001813,2]
[372649115,1752733838414,-500.0,0.0001813,2]
[372649117,1752733838424,-229.75880146,0.0001813,2]
[372649119,1752733838433,-2514.36570485,0.0001813,2]
[372649121,1752733838443,-460.0,0.00018131,2]
[372649123,1752733838453,-460.0,0.00018131,2]
[372649125,1752733838462,-334.9673446,0.00018131,2]
[372649127,1752733838471,-460.0,0.00018131,2]
[372649129,1752733838481,-463.27328941,0.00018131,2]
[372649131,1752733838491,-460.0,0.00018131,2]
[372649133,1752733838501,-460.0,0.00018131,2]
[372649135,1752733838511,-460.0,0.00018131,2]
[372649137,1752733838521,-460.0,0.00018131,2]
[372649139,1752733838530,-4140.04,0.00018131,2]
[372649141,1752733838539,-932.79,0.00018131,2]
[372649143,1752733838551,-540.39,0.00018131,2]
[372649145,1752733838563,-460.0,0.00018131,2]
[372649148,1752733838572,-2892.45,0.00018131,2]
[372649150,1752733838583,-213.34,0.00018131,2]
[372649152,1752733838592,-460.0,0.00018131,2]
[372649153,1752733838602,-460.0,0.00018131,2]
[372649156,1752733838611,-2151.51,0.00018131,2]
[372649157,1752733838621,-727.28,0.00018131,2]
[372649160,1752733838631,-460.0,0.00018132,2]
[372649162,1752733838641,-460.0,0.00018132,2]
[372649164,1752733838651,-460.0,0.00018132,2]
[372649166,1752733838660,-460.0,0.00018132,2]
[372649168,1752733838670,-460.0,0.00018132,2]
[372649169,1752733838679,-460.0,0.00018132,2]
[372649171,1752733838689,-460.0,0.00018132,2]
[372649172,1752733838699,-164.02802276,0.00018132,2]
[372649173,1752733838709,-460.0,0.00018132,2]
[372649174,1752733838718,-460.0,0.00018132,2]
[372649175,1752733838728,-460.0,0.00018132,2]
[372649176,1752733838740,-460.0,0.00018133,2]
[372649177,1752733838750,-460.0,0.00018133,2]
[372649178,1752733838760,-460.0,0.00018133,2]
[372649179,1752733838770,-460.0,0.00018133,2]
[372649180,1752733838780,-460.0,0.00018133,2]
[372649181,1752733838790,-460.0,0.00018133,2]
[372649182,1752733838801,-460.0,0.00018133,2]
[372649183,1752733838812,-460.0,0.00018133,2]
[372649184,1752733838821,-460.0,0.00018133,2]
[372649185,1752733838831,-460.0,0.00018133,2]
[372649186,1752733838840,-631.04,0.00018133,2]
[372649187,1752733838849,-460.0,0.00018133,2]
[372649188,1752733838859,-460.0,0.00018133,2]
[372649189,1752733838868,-508.65454443,0.00018133,2]
[372649190,1752733838878,-460.0,0.00018133,2]
[372649191,1752733838887,-460.0,0.00018133,2]
[372649192,1752733838897,-1599.14,0.00018133,2]
[372649193,1752733838906,-151.0,0.00018133,2]
[372649194,1752733838916,-460.0,0.00018133,2]
[372649195,1752733838925,-460.0,0.00018133,2]
[372649196,1752733838934,-460.0,0.00018133,2]
[372649197,1752733838943,-460.0,0.00018133,2]
[372649198,1752733838955,-460.0,0.00018133,2]
[372649199,1752733838964,-460.0,0.00018133,2]
[372649200,1752733838974,-460.0,0.00018133,2]
[372649201,1752733838983,-460.0,0.00018133,2]
[372649202,1752733838993,-613.34,0.00018133,2]
[372649203,1752733839002,-619.55,0.00018133,2]
[372649204,1752733839012,-1158.0,0.00018133,2]
[372649205,1752733839021,-460.0,0.00018133,2]
[372649206,1752733839030,-460.0,0.00018133,2]
[372649207,1752733839050,-460.0,0.00018133,2]
[372649208,1752733839060,-693.25,0.00018133,2]
[372649209,1752733839069,-460.0,0.00018133,2]
[372649210,1752733839079,-460.0,0.00018133,2]
[372649211,1752733839089,-460.0,0.00018133,2]
[372649212,1752733839099,-460.0,0.00018133,2]
[372649213,1752733839108,-460.0,0.00018133,2]
[372649214,1752733839119,-460.0,0.00018133,2]
[372649215,1752733839129,-500.0,0.00018133,2]
[372649216,1752733839139,-500.0,0.00018133,2]
[372649217,1752733839149,-500.0,0.00018133,2]
[372649218,1752733839159,-500.0,0.00018133,2]
[372649219,1752733839170,-500.0,0.00018133,2]
[372649220,1752733839180,-164.26806508,0.00018133,2]
[372649221,1752733839190,-500.0,0.00018133,2]
[372649222,1752733839200,-500.0,0.00018133,2]
[372649223,1752733839211,-507.93999564,0.00018133,2]
[372649224,1752733839221,-460.0,0.00018133,2]
[372649225,1752733839231,-151.0,0.00018133,2]
[372649226,1752733839241,-500.0,0.00018133,2]
[372649227,1752733839252,-460.0,0.00018133,2]
[372649228,1752733839262,-151.0,0.00018133,2]
[372649229,1752733839271,-151.0,0.00018133,2]
[372649230,1752733839281,-152.54299812,0.00018133,2]
[372649231,1752733839291,-151.26632728,0.00018133,2]
[372649232,1752733839303,-500.0,0.00018133,2]
[372649233,1752733839313,-151.0,0.00018133,2]
[372649234,1752733839323,-151.0,0.00018133,2]
[372649235,1752733839333,-274.08742551,0.00018133,2]
[372649236,1752733839343,-193.1393986,0.00018133,2]
[372649237,1752733839353,-151.57497679,0.00018133,2]
[372649238,1752733839363,-500.0,0.00018133,2]
[372649239,1752733839373,-151.0,0.00018133,2]
[372649240,1752733839383,-460.0,0.00018135,2]
[372649241,1752733839393,-466.48323368,0.00018135,2]
[372649242,1752733839403,-1000.0,0.00018135,2]
[372649243,1752733839413,-460.0,0.00018135,2]
[372649244,1752733839424,-460.0,0.00018135,2]
[372649245,1752733839433,-460.0,0.00018135,2]
[372649246,1752733839444,-460.0,0.00018135,2]
[372649247,1752733839454,-460.0,0.00018135,2]
[372649248,1752733839464,-460.0,0.00018135,2]
[372649249,1752733839474,-460.0,0.00018135,2]
[372649250,1752733839484,-462.15193111,0.00018135,2]
[372649251,1752733839494,-460.0,0.00018135,2]
[372649253,1752733839634,-460.0,0.00018135,2]
[372649254,1752733839645,-460.41054168,0.00018135,2]
[372649255,1752733839658,-460.0,0.00018135,2]
[372649256,1752733839667,-460.0,0.00018135,2]
[372649257,1752733839676,-460.0,0.00018135,2]
[372649258,1752733839686,-295.43145608,0.00018135,2]
[372649259,1752733839695,-460.0,0.00018135,2]
[372649260,1752733839705,-460.0,0.00018135,2]
[372649261,1752733839718,-460.0,0.00018135,2]
[372649262,1752733839728,-460.0,0.00018135,2]
[372649263,1752733839740,-460.0,0.00018135,2]
[372649264,1752733839750,-460.0,0.00018135,2]
[372649265,1752733839760,-460.0,0.00018135,2]
[372649266,1752733839770,-460.0,0.00018135,2]
[372649267,1752733839781,-460.0,0.00018135,2]
[372649269,1752733839790,-460.0,0.00018135,2]
[372649271,1752733839803,-215.92478924,0.00018135,2]
[372649273,1752733839815,-460.0,0.00018135,2]
[372649275,1752733839825,-460.0,0.00018135,2]
[372649277,1752733839835,-460.0,0.00018135,2]
[372649279,1752733839844,-460.0,0.00018135,2]
[372649281,1752733839854,-460.0,0.00018135,2]
[372649283,1752733839863,-460.0,0.00018135,2]
[372649285,1752733839873,-460.0,0.00018135,2]
[372649287,1752733839883,-460.0,0.00018135,2]
[372649289,1752733839892,-460.0,0.00018135,2]
[372649290,1752733839902,-460.0,0.00018135,2]
[372649291,1752733839912,-460.0,0.00018135,2]
[372649292,1752733839922,-460.0,0.00018135,2]
[372649294,1752733839931,-460.0,0.00018135,2]
[372649296,1752733839941,-460.0,0.00018135,2]
[372649298,1752733839950,-460.54340045,0.00018135,2]
[372649300,1752733839959,-460.0,0.00018135,2]
[372649302,1752733839969,-460.0,0.00018135,2]
[372649303,1752733839979,-460.0,0.00018135,2]
[372649304,1752733839988,-460.0,0.00018135,2]
[372649305,1752733839998,-460.0,0.00018135,2]
[372649306,1752733840008,-460.0,0.00018135,2]
[372649307,1752733840018,-460.0,0.00018135,2]
[372649308,1752733840028,-460.36871305,0.00018135,2]
[372649309,1752733840038,-460.0,0.00018135,2]
[372649310,1752733840050,-460.0,0.00018135,2]
[372649311,1752733840060,-460.0,0.00018135,2]
[372649312,1752733840070,-460.0,0.00018135,2]
[372649313,1752733840079,-460.0,0.00018135,2]
[372649314,1752733840092,-151.0,0.00018135,2]
[372649315,1752733840102,-460.0,0.00018135,2]
[372649316,1752733840112,-1194.0,0.00018135,2]
[372649317,1752733840122,-460.0,0.00018135,2]
[372649318,1752733840132,-151.0,0.00018135,2]
[372649319,1752733840142,-460.0,0.00018135,2]
[372649320,1752733840152,-151.0,0.00018135,2]
[372649321,1752733840161,-151.0,0.00018135,2]
[372649322,1752733840171,-460.0,0.00018135,2]
[372649323,1752733840181,-460.0,0.00018135,2]
[372649324,1752733840191,-460.0,0.00018135,2]
[372649325,1752733840200,-151.0,0.00018135,2]
[372649326,1752733840210,-460.0,0.00018135,2]
[372649327,1752733840220,-460.0,0.00018135,2]
[372649328,1752733840230,-423.03057766,0.00018135,2]
[372649329,1752733840240,-460.0,0.00018135,2]
[372649330,1752733840249,-460.0,0.00018135,2]
[372649331,1752733840259,-460.0,0.00018135,2]
[372649332,1752733840270,-460.0,0.00018135,2]
[372649333,1752733840280,-532.28474037,0.00018135,2]
[372649334,1752733840290,-460.0,0.00018135,2]
[372649335,1752733840301,-151.7489704,0.00018135,2]
[372649336,1752733840312,-151.52218414,0.00018135,2]
[372649337,1752733840321,-153.54833042,0.00018135,2]
[372649338,1752733840331,-460.0,0.00018135,2]
[372649339,1752733840341,-500.87148622,0.00018135,2]
[372649340,1752733840350,-460.0,0.00018135,2]
[372649341,1752733840361,-460.0,0.00018135,2]
[372649342,1752733840371,-460.0,0.00018135,2]
[372649343,1752733840380,-460.0,0.00018135,2]
[372649344,1752733840390,-460.0,0.00018135,2]
[372649345,1752733840400,-460.0,0.00018135,2]
[372649346,1752733840410,-460.0,0.00018135,2]
[372649347,1752733840419,-460.0,0.00018135,2]
[372649348,1752733840429,-151.0,0.00018135,2]
[372649349,1752733840439,-151.0,0.00018135,2]
[372649350,1752733840449,-460.0,0.00018135,2]
[372649351,1752733840458,-158.30029826,0.00018135,2]
[372649352,1752733840468,-460.0,0.00018135,2]
[372649353,1752733840478,-460.0,0.00018135,2]
[372649354,1752733840487,-460.0,0.00018135,2]
[372649355,1752733840497,-460.0,0.00018135,2]
[372649356,1752733840507,-460.0,0.00018135,2]
[372649357,1752733840517,-244.13715898,0.00018135,2]
[372649358,1752733840527,-460.0,0.00018135,2]
[372649359,1752733840537,-460.0,0.00018135,2]
[372649360,1752733840547,-460.64400253,0.00018135,2]
[372649361,1752733840559,-460.0,0.00018135,2]
[372649362,1752733840568,-460.0,0.00018135,2]
[372649363,1752733840579,-460.0,0.00018135,2]
[372649364,1752733840588,-471.52655233,0.00018135,2]
[372649365,1752733840598,-460.0,0.00018135,2]
[372649366,1752733840608,-847.53,0.00018135,2]
[372649367,1752733840617,-311.6957627,0.00018135,2]
[372649368,1752733840627,-460.0,0.00018135,2]
[372649369,1752733840637,-443.52218712,0.00018135,2]
[372649370,1752733840647,-460.0,0.00018135,2]
[372649371,1752733840657,-460.0,0.00018135,2]
[372649372,1752733840667,-460.0,0.00018135,2]
[372649373,1752733840677,-462.48375694,0.00018135,2]
[372649374,1752733840687,-460.0,0.00018135,2]
[372649375,1752733840698,-460.0,0.00018135,2]
[372649376,1752733840708,-495.0958467,0.00018135,2]
[372649377,1752733840720,-1100.0,0.00018135,2]
[372649378,1752733840730,-692.39,0.00018135,2]
[372649379,1752733840745,-460.0,0.00018135,2]
[372649380,1752733840759,-462.23063745,0.00018135,2]
[372649381,1752733840769,-151.48953185,0.00018135,2]
[372649382,1752733840779,-500.0,0.00018135,2]
[372649383,1752733840789,-500.0,0.00018135,2]
[372649384,1752733840801,-460.0,0.00018135,2]
[372649385,1752733840811,-151.0,0.00018135,2]
[372649386,1752733840821,-460.0,0.00018135,2]
[372649387,1752733840830,-500.0,0.00018135,2]
[372649388,1752733840840,-460.0,0.00018135,2]
[372649389,1752733840850,-460.0,0.00018135,2]
[372649390,1752733840860,-460.0,0.00018135,2]
[372649391,1752733840870,-460.0,0.00018135,2]
[372649392,1752733840880,-494.60969721,0.00018135,2]
[372649393,1752733840890,-546.11,0.00018135,2]
[372649394,1752733840900,-460.0,0.00018135,2]
[372649395,1752733840910,-460.0,0.00018135,2]
[372649396,1752733840919,-460.0,0.00018135,2]
[372649397,1752733840929,-515.78602839,0.00018135,2]
[372649398,1752733840938,-460.0,0.00018135,2]
[372649399,1752733840947,-460.0,0.00018135,2]
[372649400,1752733840957,-460.0,0.00018135,2]
[372649401,1752733840967,-460.45825236,0.00018135,2]
[372649402,1752733840976,-460.0,0.00018135,2]
[372649403,1752733840986,-460.0,0.00018135,2]
[372649404,1752733840995,-500.0,0.00018135,2]
[372649405,1752733841005,-3583.74,0.00018135,2]
[372649406,1752733841015,-460.0,0.00018135,2]
[372649407,1752733841025,-460.0,0.00018135,2]
[372649408,1752733841035,-1073.34,0.00018135,2]
[372649409,1752733841044,-509.11099178,0.00018135,2]
[372649410,1752733841055,-468.89057623,0.00018136,2]
[372649411,1752733841066,-460.0,0.00018136,2]
[372649412,1752733841075,-460.0,0.00018136,2]
[372649413,1752733841085,-460.0,0.00018136,2]
[372649414,1752733841095,-460.0,0.00018136,2]
[372649415,1752733841105,-460.0,0.00018136,2]
[372649416,1752733841115,-460.0,0.00018136,2]
[372649417,1752733841125,-460.0,0.00018136,2]
[372649418,1752733841135,-460.0,0.00018136,2]
[372649419,1752733841145,-460.0,0.00018136,2]
[372649420,1752733841154,-460.0,0.00018136,2]
[372649421,1752733841164,-460.0,0.00018136,2]
[372649422,1752733841175,-460.0,0.00018137,2]
[372649423,1752733841186,-460.0,0.00018137,2]
[372649424,1752733841198,-460.0,0.00018137,2]
[372649425,1752733841207,-460.0,0.00018137,2]
[372649426,1752733841217,-460.0,0.00018137,2]
[372649427,1752733841227,-460.0,0.00018137,2]
[372649428,1752733841237,-460.0,0.00018137,2]
[372649429,1752733841246,-460.49205068,0.00018137,2]
[372649430,1752733841256,-463.41811453,0.00018137,2]
[372649431,1752733841266,-500.0,0.00018137,2]
[372649432,1752733841277,-460.0,0.00018137,2]
[372649433,1752733841288,-460.0,0.00018137,2]
[372649434,1752733841299,-276.54310814,0.00018137,2]
[372649435,1752733841311,-460.0,0.00018137,2]
[372649436,1752733841320,-460.0,0.00018137,2]
[372649437,1752733841331,-462.21758011,0.00018137,2]
[372649438,1752733841341,-460.0,0.00018137,2]
[372649439,1752733841350,-460.0,0.00018137,2]
[372649440,1752733841361,-461.87358625,0.00018137,2]
[372649441,1752733841371,-460.0,0.00018137,2]
[372649442,1752733841382,-460.0,0.00018137,2]
[372649443,1752733841391,-460.0,0.00018137,2]
[372649444,1752733841401,-460.0,0.00018137,2]
[372649445,1752733841411,-263.172676,0.00018141,2]
[372649446,1752733841420,-263.172676,0.00018141,2]
[372649447,1752733841432,-291.21452766,0.00018173,2]
[372649448,1752733841442,-500.0,0.00018173,2]
[372649449,1752733841453,-500.0,0.00018173,2]
[372649450,1752733841463,-500.0,0.00018173,2]
[372649451,1752733841474,-500.0,0.00018173,2]
[372649452,1752733841484,-326.6286965,0.00018173,2]
[372649453,1752733841493,-500.0,0.00018173,2]
[372649454,1752733841503,-500.58127185,0.00018173,2]
[372649455,1752733841513,-500.0,0.00018173,2]
[372649456,1752733841523,-500.0,0.00018173,2]
[372649457,1752733841533,-500.0,0.00018173,2]
[372649458,1752733841542,-160.24324187,0.00018173,2]
[372649459,1752733841644,-558.0,0.00018177,2]
[372649460,1752733841655,-558.0,0.00018178,2]
[372649461,1752733841664,-460.0,0.00018306,2]
[372649462,1752733841674,-529.22445917,0.00018306,2]
[372649463,1752733841684,-460.0,0.00018306,2]
[372649464,1752733841693,-460.0,0.00018306,2]
[372649465,1752733841703,-460.0,0.00018306,2]
[372649466,1752733841712,-460.0,0.00018306,2]
[372649467,1752733841722,-460.0,0.00018306,2]
[372649468,1752733841732,-460.0,0.00018306,2]
[372649469,1752733841746,-460.0,0.00018306,2]
[372649470,1752733841756,-460.0,0.00018306,2]
[372649471,1752733841766,-460.0,0.00018306,2]
[372649472,1752733841775,-460.0,0.00018306,2]
[372649473,1752733841786,-460.0,0.00018306,2]
[372649474,1752733841796,-519.47338681,0.00018306,2]
[372649475,1752733841806,-460.0,0.00018306,2]
[372649476,1752733841816,-486.72,0.00018306,2]
[372649477,1752733841826,-460.0,0.00018306,2]
[372649478,1752733841836,-460.0,0.00018306,2]
[372649479,1752733841846,-460.0,0.00018306,2]
[372649480,1752733841855,-460.0,0.00018306,2]
[372649481,1752733841865,-530.92,0.00018306,2]
[372649482,1752733841875,-587.58,0.00018306,2]
[372649483,1752733841884,-460.0,0.00018306,2]
[372649484,1752733841894,-460.0,0.00018306,2]
[372649485,1752733841904,-598.69,0.00018306,2]
[372649486,1752733841913,-460.0,0.00018306,2]
[372649487,1752733841923,-460.0,0.00018306,2]
[372649488,1752733841933,-460.0,0.00018306,2]
[372649489,1752733841942,-460.0,0.00018306,2]
[372649490,1752733841951,-460.0,0.00018306,2]
[372649491,1752733841961,-460.0,0.00018306,2]
[372649492,1752733841971,-417.90135542,0.00018306,2]